bitfinex/quotes_BTCUSD_20230405
["timestamp","ask_amount","ask_price","bid_price","bid_amount"]
[1680733864952,0.011,28119.0,28116.0,0.2985498]
[1680733865149,0.019,28119.0,28116.0,0.127897]
[1680733865363,0.011,28119.0,28116.0,0.127897]
[1680733865541,0.008,28118.0,28116.0,0.127897]
[1680733865946,0.011,28119.0,28116.0,0.127897]
[1680733866574,0.019,28119.0,28116.0,0.127897]
[1680733867550,0.03,28119.0,28116.0,0.127897]
[1680733873283,0.041,28119.0,28116.0,0.127897]
[1680733876545,0.041,28119.0,28115.0,0.49171391]
[1680733877181,0.033,28119.0,28115.0,0.49171391]
[1680733877382,0.034,28119.0,28115.0,0.49171391]
[1680733879057,0.045,28119.0,28115.0,0.49171391]
[1680733884732,0.056,28119.0,28115.0,0.49171391]
[1680733885521,0.056,28119.0,28115.0,0.1705328]
[1680733890454,0.067,28119.0,28115.0,0.1705328]
[1680733892916,0.067,28119.0,28115.0,0.22172218]
[1680733896096,0.078,28119.0,28115.0,0.22172218]
[1680733897153,0.078,28119.0,28116.0,0.1705328]
[1680733898324,0.077,28119.0,28116.0,0.1705328]
[1680733898459,0.085,28119.0,28116.0,0.1705328]
[1680733899809,0.085,28119.0,28116.0,0.5635328]
[1680733901055,0.085,28119.0,28116.0,0.61472218]
[1680733901217,0.085,28119.0,28116.0,0.5260328]
[1680733901420,0.085,28119.0,28116.0,0.57722218]
[1680733901922,0.096,28119.0,28116.0,0.5260328]
[1680733902097,0.096,28119.0,28116.0,0.57722218]
[1680733903104,0.096,28119.0,28117.0,0.1705328]
[1680733903356,0.09651,28119.0,28117.0,0.1705328]
[1680733903930,0.08851,28119.0,28117.0,0.1705328]
[1680733904121,0.10251,28119.0,28117.0,0.1705328]
[1680733908201,0.11351,28119.0,28117.0,0.1705328]
[1680733908408,0.11351,28119.0,28117.0,0.22172218]
[1680733908520,0.11351,28119.0,28117.0,0.57722218]
[1680733908727,0.113,28119.0,28118.0,0.08908938]
[1680733908950,0.113,28119.0,28118.0,0.3934]
[1680733909913,0.099,28119.0,28118.0,0.60646521]
[1680733910095,0.12,28119.0,28118.0,0.60646521]
[1680733910248,0.099,28119.0,28118.0,0.60646521]
[1680733910455,0.1,28119.0,28118.0,0.60646521]
[1680733913795,0.111,28119.0,28118.0,0.60646521]
[1680733915229,0.111,28119.0,28118.0,0.77681878]
[1680733915602,0.111,28119.0,28118.0,0.17035357]
[1680733919794,0.122,28119.0,28118.0,0.17035357]
[1680733921075,0.61860737,28119.0,28118.0,0.17035357]
[1680733921362,0.60602456,28119.0,28117.0,0.00018]
[1680733921578,0.44547556,28118.0,28115.0,0.1277541]
[1680733921786,0.0379,28116.0,28115.0,0.1278741]
[1680733921992,0.0379,28116.0,28115.0,0.1279341]
[1680733922198,0.0379,28116.0,28115.0,0.1277541]
[1680733922397,0.088999,28116.0,28115.0,0.1277541]
[1680733922557,0.44370956,28116.0,28115.0,0.1277541]
[1680733922957,0.45170956,28116.0,28115.0,0.1277541]
[1680733923159,0.45170956,28116.0,28114.0,0.29828767]
[1680733923363,0.40061056,28116.0,28114.0,0.29828767]
[1680733923597,0.40061056,28116.0,28115.0,0.1277541]
[1680733923979,0.40061056,28116.0,28114.0,0.29828767]
[1680733924190,0.40061056,28116.0,28115.0,0.1277541]
[1680733924646,0.40061056,28116.0,28114.0,0.29828767]
[1680733924857,0.39261056,28116.0,28115.0,0.1277541]
[1680733925168,0.39261056,28116.0,28114.0,0.29828767]
[1680733925169,0.39361056,28116.0,28114.0,0.29828767]
[1680733925705,0.39312056,28116.0,28114.0,0.29810767]
[1680733926074,0.41212056,28116.0,28114.0,0.29810767]
[1680733926277,0.40412056,28116.0,28114.0,0.29810767]
[1680733926486,0.40461056,28116.0,28114.0,0.29828767]
[1680733926892,0.40461056,28116.0,28114.0,0.1279341]
[1680733927091,0.40461056,28116.0,28114.0,0.1277541]
[1680733927710,0.40512056,28116.0,28114.0,0.1227541]
[1680733930001,0.40512056,28116.0,28113.0,0.19205357]
[1680733930234,0.40512056,28116.0,28113.0,0.49205357]
[1680733930837,0.40412056,28116.0,28113.0,0.49205357]
[1680733931234,0.36722056,28116.0,28113.0,0.3227]
[1680733931643,0.37822056,28116.0,28113.0,0.3227]
[1680733932424,0.35471056,28115.0,28113.0,0.0227]
[1680733932632,0.35522056,28115.0,28113.0,0.0227]
[1680733932832,0.35471056,28115.0,28113.0,0.0227]
[1680733933077,0.35522056,28115.0,28113.0,0.0227]
[1680733933524,0.35522056,28115.0,28113.0,0.0217]
[1680733933712,0.35622056,28115.0,28113.0,0.0227]
[1680733936661,0.00151,28115.0,28113.0,0.0227]
[1680733936866,0.001,28115.0,28113.0,0.1503777]
[1680733937483,0.012,28115.0,28113.0,0.1503777]
[1680733941498,0.012,28115.0,28113.0,0.0227]
[1680733941702,0.012,28115.0,28113.0,0.1503777]
[1680733943238,0.023,28115.0,28113.0,0.1503777]
[1680733944346,0.023,28115.0,28113.0,0.0227]
[1680733944554,0.023,28115.0,28113.0,0.1503777]
[1680733944907,0.023,28115.0,28113.0,0.0227]
[1680733949067,0.034,28115.0,28113.0,0.0227]
[1680733954772,0.045,28115.0,28113.0,0.0227]
[1680733956642,0.045,28115.0,28113.0,0.1503777]
[1680733956897,0.045,28115.0,28113.0,0.0227]
[1680733957317,0.045,28115.0,28113.0,0.1503777]
[1680733960395,0.056,28115.0,28113.0,0.1503777]
[1680733961158,0.056,28115.0,28113.0,0.32073127]
[1680733963219,0.056,28115.0,28114.0,0.1276777]
[1680733964109,0.055,28115.0,28114.0,0.1276777]
[1680733964325,0.056,28115.0,28114.0,0.1276777]
[1680733965131,0.056,28115.0,28114.0,0.17035357]
[1680733966149,0.067,28115.0,28114.0,0.17035357]
[1680733966969,0.067,28115.0,28114.0,0.38341878]
[1680733967532,0.067,28115.0,28114.0,0.17035357]
[1680733968152,0.067,28115.0,28114.0,0.38341878]
[1680733968355,0.067,28115.0,28114.0,0.17035357]
[1680733969077,0.067,28115.0,28114.0,0.38341878]
[1680733969265,0.067,28115.0,28114.0,0.17035357]
[1680733969465,0.067,28115.0,28114.0,0.38341878]
[1680733971975,0.078,28115.0,28114.0,0.38341878]
[1680733972607,0.078,28115.0,28114.0,0.38361439]
[1680733972811,0.078,28115.0,28114.0,0.38361365]
[1680733973015,0.078,28115.0,28114.0,0.21306521]
[1680733977744,0.089,28115.0,28114.0,0.21306521]
[1680733980156,0.089,28115.0,28114.0,0.56866521]
[1680733982133,0.089,28115.0,28114.0,0.21306521]
[1680733983315,0.1,28115.0,28114.0,0.21306521]
[1680733989230,0.111,28115.0,28114.0,0.21306521]
[1680733994173,0.111,28115.0,28114.0,0.3556]
[1680733995025,0.122,28115.0,28114.0,0.3556]
[1680733998998,0.122,28115.0,28114.0,0.3556]
[1680734000422,0.122,28115.0,28114.0,0.5687617]
[1680734000622,0.133,28115.0,28114.0,0.5687617]
[1680734000822,0.133,28115.0,28114.0,0.3556]
[1680734001446,0.133,28115.0,28114.0,0.21316003]
[1680734003363,0.133,28115.0,28114.0,0.25106003]
[1680734003566,0.133,28115.0,28114.0,0.60666003]
[1680734003770,0.133,28115.0,28114.0,0.56876003]
[1680734003978,0.133,28115.0,28114.0,0.52613516]
[1680734004177,0.133,28115.0,28114.0,0.17053516]
[1680734004380,0.133,28115.0,28114.0,0.38369519]
[1680734006488,0.144,28115.0,28114.0,0.38369519]
[1680734011426,0.144,28115.0,28114.0,0.38369363]
[1680734011783,0.144,28115.0,28114.0,0.21316003]
[1680734012184,0.155,28115.0,28114.0,0.21316003]
[1680734014784,0.155,28115.0,28114.0,0.38369682]
[1680734015136,0.155,28115.0,28114.0,0.17053679]
[1680734016337,0.155,28115.0,28114.0,0.21316003]
[1680734016946,0.155,28115.0,28114.0,0.04779408]
[1680734017606,0.155,28115.0,28114.0,0.40339408]
[1680734018026,0.166,28115.0,28114.0,0.40339408]
[1680734022124,0.166,28115.0,28114.0,1.43754285]
[1680734022354,0.166,28115.0,28114.0,1.18231056]
[1680734022567,0.166,28115.0,28114.0,1.55973277]
[1680734023211,0.165,28115.0,28114.0,1.55973277]
[1680734023428,0.167,28115.0,28114.0,1.56073277]
[1680734023853,0.178,28115.0,28114.0,1.18349056]
[1680734026017,0.178,28115.0,28114.0,1.25909056]
[1680734026235,0.121,28119.0,28116.0,0.8]
[1680734026445,9e-05,28117.0,28116.0,1.13118185]
[1680734026654,0.12127,28119.0,28117.0,0.40551]
[1680734026871,0.121,28119.0,28118.0,1.65536483]
[1680734027085,0.121,28119.0,28118.0,1.85296483]
[1680734027299,0.121,28119.0,28118.0,1.59778]
[1680734027512,0.121,28119.0,28118.0,1.63334]
[1680734028008,0.121,28119.0,28118.0,1.88846697]
[1680734028235,0.122,28119.0,28118.0,1.91446697]
[1680734028452,0.121,28119.0,28118.0,1.88846697]
[1680734028661,0.122,28119.0,28118.0,1.91446697]
[1680734029497,0.132,28119.0,28118.0,1.88846697]
[1680734029708,0.132,28119.0,28118.0,1.65934]
[1680734029709,0.133,28119.0,28118.0,1.65934]
[1680734030561,0.133,28119.0,28118.0,4.81094]
[1680734030975,0.133,28119.0,28118.0,5.16565056]
[1680734031192,0.133,28119.0,28118.0,5.52095056]
[1680734032272,0.02251,28120.0,28119.0,0.88556]
[1680734032483,0.11826283,28121.0,28119.0,1.73827056]
[1680734032696,0.11826283,28121.0,28120.0,1.03057607]
[1680734032903,0.11826283,28121.0,28120.0,1.03907607]
[1680734033113,0.11826283,28121.0,28120.0,1.39437607]
[1680734033757,0.11926283,28121.0,28120.0,1.49723607]
[1680734033980,0.132,28131.0,28123.0,0.8]
[1680734034202,0.00015,28130.0,28123.0,1.71099747]
[1680734034412,0.13221,28131.0,28126.0,0.4]
[1680734034629,0.13221,28131.0,28127.0,0.66321056]
[1680734034842,0.13221,28131.0,28130.0,0.0379]
[1680734035057,0.13221,28131.0,28130.0,0.0464]
[1680734035304,0.14321,28131.0,28130.0,0.0464]
[1680734035738,0.14321,28131.0,28130.0,0.40111056]
[1680734035951,0.14321,28131.0,28130.0,0.76541056]
[1680734036166,0.16234233,28131.0,28130.0,0.76541056]
[1680734037488,0.16234233,28131.0,28130.0,0.80331056]
[1680734038153,0.16234233,28131.0,28130.0,1.1300288]
[1680734038360,0.16234233,28131.0,28130.0,1.1580288]
[1680734041819,0.17334233,28131.0,28130.0,1.1580288]
[1680734042823,0.17334233,28131.0,28130.0,1.1935888]
[1680734043291,0.15421,28131.0,28130.0,1.1556888]
[1680734044116,0.15421,28131.0,28130.0,1.1276888]
[1680734044355,0.15421,28131.0,28130.0,1.1556888]
[1680734045982,0.15421,28131.0,28130.0,1.1276888]
[1680734046348,0.15421,28131.0,28130.0,1.1655888]
[1680734046930,0.15421,28131.0,28130.0,1.1276888]
[1680734047125,0.15421,28131.0,28130.0,1.1556888]
[1680734047561,0.16521,28131.0,28130.0,1.1556888]
[1680734050808,0.16521,28131.0,28130.0,1.5556888]
[1680734053407,0.17621,28131.0,28130.0,1.5556888]
[1680734054362,0.176,28131.0,28130.0,1.5558088]
[1680734055134,0.17621,28131.0,28130.0,1.5556888]
[1680734057277,0.176,28131.0,28130.0,1.38408538]
[1680734058499,0.176,28131.0,28130.0,0.75457824]
[1680734058682,0.176,28131.0,28130.0,0.71901824]
[1680734059086,0.20639334,28131.0,28130.0,0.71901824]
[1680734060114,0.20660334,28131.0,28130.0,0.71901824]
[1680734064942,0.21760334,28131.0,28130.0,0.71901824]
[1680734069982,0.21760334,28131.0,28130.0,0.71913824]
[1680734069983,0.21739334,28131.0,28130.0,0.71913824]
[1680734070194,0.21760334,28131.0,28130.0,0.71901824]
[1680734070600,0.22860334,28131.0,28130.0,0.71901824]
[1680734071914,0.22860334,28131.0,28130.0,1.1198288]
[1680734073390,0.20921,28131.0,28130.0,1.1198288]
[1680734074709,0.20921,28131.0,28130.0,1.1575288]
[1680734075137,0.20921,28131.0,28130.0,1.1930888]
[1680734075768,0.20921,28131.0,28130.0,1.36286234]
[1680734076003,0.209,28131.0,28130.0,1.36286234]
[1680734076216,0.209,28131.0,28130.0,1.33486234]
[1680734076426,0.22,28131.0,28130.0,1.40530572]
[1680734076637,0.22021,28131.0,28130.0,1.50971648]
[1680734076850,0.22021,28131.0,28130.0,1.36760572]
[1680734077507,0.22021,28131.0,28130.0,1.33960572]
[1680734077724,0.22021,28131.0,28130.0,1.1553888]
[1680734079251,0.22021,28131.0,28130.0,1.1273888]
[1680734079463,0.22021,28131.0,28130.0,1.1932888]
[1680734082122,0.23121,28131.0,28130.0,1.1932888]
[1680734082875,0.23121,28131.0,28130.0,1.44841577]
[1680734084805,0.23121,28131.0,28130.0,1.1932888]
[1680734087303,0.23121,28131.0,28130.0,1.1553888]
[1680734088080,0.24221,28131.0,28130.0,1.1553888]
[1680734088696,0.24221,28131.0,28130.0,1.1468888]
[1680734089797,0.24221,28131.0,28130.0,1.00970521]
[1680734090012,0.24221,28131.0,28130.0,0.71901824]
[1680734090216,0.26145275,28131.0,28130.0,0.71901824]
[1680734093899,0.27245275,28131.0,28130.0,0.71901824]
[1680734097789,0.27245275,28131.0,28130.0,1.0737288]
[1680734097986,0.27245275,28131.0,28130.0,1.1199288]
[1680734099238,0.25321,28131.0,28130.0,1.1199288]
[1680734099636,0.26421,28131.0,28130.0,1.1199288]
[1680734100048,0.26421,28131.0,28130.0,1.5199288]
[1680734101158,0.264,28131.0,28130.0,1.77517577]
[1680734101630,0.264,28131.0,28130.0,1.77538046]
[1680734101835,0.264,28131.0,28130.0,1.81094046]
[1680734103526,0.264,28131.0,28130.0,1.5556088]
[1680734103723,0.264,28131.0,28130.0,1.81094046]
[1680734104400,0.264,28131.0,28130.0,1.61780885]
[1680734104610,0.26421,28131.0,28130.0,1.36235719]
[1680734104813,0.26421,28131.0,28130.0,1.61780885]
[1680734105017,0.26421,28131.0,28130.0,0.43866048]
[1680734105238,0.26421,28131.0,28130.0,0.60888589]
[1680734105445,0.27521,28131.0,28130.0,0.60888518]
[1680734105646,0.27521,28131.0,28130.0,0.60888531]
[1680734105893,0.27521,28131.0,28130.0,0.39611146]
[1680734106327,0.29212478,28131.0,28130.0,0.39611146]
[1680734111240,0.30312478,28131.0,28130.0,0.39611146]
[1680734114079,0.29812478,28131.0,28130.0,0.39611146]
[1680734114320,0.90803215,28131.0,28130.0,0.22526208]
[1680734114537,0.90803215,28131.0,28130.0,0.028]
[1680734114538,0.96258815,28131.0,28130.0,0.028]
[1680734114753,0.82069134,28131.0,28130.0,0.028]
[1680734115181,0.82069134,28131.0,28124.0,0.29810503]
[1680734115393,0.0379,28126.0,28124.0,0.29792503]
[1680734115606,0.17979681,28126.0,28124.0,0.29792503]
[1680734115816,0.0379,28126.0,28124.0,0.29810503]
[1680734116029,0.0379,28126.0,28124.0,0.29792503]
[1680734117100,0.0489,28126.0,28124.0,0.29792503]
[1680734117318,0.0489,28126.0,28124.0,0.1277002]
[1680734117524,0.0509,28126.0,28124.0,0.7830002]
[1680734119269,0.0377,28125.0,28124.0,0.6553]
[1680734120335,0.0397,28125.0,28124.0,0.6553]
[1680734121844,0.0397,28125.0,28124.0,0.65542]
[1680734122271,0.0397,28125.0,28124.0,0.3553]
[1680734122495,0.58987403,28125.0,28124.0,0.3553]
[1680734122716,0.69292603,28125.0,28123.0,0.00018]
[1680734122936,0.53539856,28124.0,28120.0,0.00018]
[1680734123158,0.0379,28121.0,28117.0,2.1029002]
[1680734123392,0.17949681,28120.0,28117.0,0.00018]
[1680734123607,0.17949681,28120.0,28117.0,0.00012]
[1680734123821,0.0379,28118.0,28116.0,0.4831802]
[1680734124038,0.0379,28118.0,28116.0,0.35548]
[1680734124255,0.0379,28118.0,28116.0,0.4831802]
[1680734124506,0.0379,28118.0,28117.0,0.003]
[1680734124749,0.0379,28118.0,28116.0,0.4831802]
[1680734124976,0.0379,28118.0,28116.0,0.4921802]
[1680734125189,0.0379,28118.0,28116.0,0.35548]
[1680734125402,0.0379,28118.0,28117.0,0.003]
[1680734126017,0.0379,28118.0,28116.0,0.35548]
[1680734126881,0.0379,28118.0,28116.0,0.35848]
[1680734127557,0.0379,28118.0,28116.0,0.35548]
[1680734127773,0.0379,28118.0,28116.0,0.35848]
[1680734127980,0.0421,28120.0,28116.0,0.35548]
[1680734128182,0.0421,28120.0,28116.0,0.35848]
[1680734128292,0.0531,28120.0,28116.0,0.35848]
[1680734129205,0.011,28120.0,28116.0,0.00318]
[1680734129403,0.011,28120.0,28117.0,0.3553]
[1680734129726,0.011,28120.0,28116.0,0.00318]
[1680734129936,0.011,28120.0,28118.0,0.3553]
[1680734131172,0.017,28120.0,28118.0,0.3563]
[1680734132357,0.011,28120.0,28118.0,0.3553]
[1680734132564,0.015,28120.0,28118.0,0.3553]
[1680734134195,0.026,28120.0,28118.0,0.3553]
[1680734135143,0.022,28120.0,28118.0,0.3553]
[1680734135342,0.028,28120.0,28118.0,0.3563]
[1680734140050,0.039,28120.0,28118.0,0.3563]
[1680734144368,0.039,28120.0,28118.0,0.35642]
[1680734144794,0.039,28120.0,28118.0,0.16231612]
[1680734144974,0.039,28120.0,28118.0,0.16219612]
[1680734145791,0.05,28120.0,28118.0,0.16219612]
[1680734148802,0.05,28120.0,28118.0,0.001]
[1680734151505,0.061,28120.0,28118.0,0.001]
[1680734154114,0.41571056,28120.0,28118.0,0.001]
[1680734154317,0.051968,28119.0,28118.0,0.001]
[1680734154517,0.41592056,28120.0,28118.0,0.001]
[1680734157187,0.42092056,28120.0,28116.0,0.1277002]
[1680734157378,0.006,28119.0,28118.0,0.001]
[1680734157614,0.42092056,28120.0,28116.0,0.1277002]
[1680734157924,0.42692056,28120.0,28118.0,0.001]
[1680734158131,0.42092056,28120.0,28116.0,0.1277002]
[1680734158337,0.006,28119.0,28118.0,0.001]
[1680734158550,0.42092056,28120.0,28116.0,0.1277002]
[1680734159166,0.42692056,28120.0,28118.0,0.001]
[1680734160377,0.42092056,28120.0,28117.0,0.1277002]
[1680734160586,0.06621,28120.0,28117.0,0.29792503]
[1680734160786,0.066,28120.0,28118.0,0.1277002]
[1680734160993,0.072,28120.0,28118.0,0.1287002]
[1680734161207,0.066,28120.0,28118.0,0.1277002]
[1680734161410,0.07,28120.0,28118.0,0.1277002]
[1680734161834,0.066,28120.0,28118.0,0.1277002]
[1680734162456,0.072,28120.0,28118.0,0.1287002]
[1680734162876,0.083,28120.0,28118.0,0.1287002]
[1680734163234,0.083,28120.0,28119.0,0.02487524]
[1680734163642,0.077,28120.0,28119.0,0.02487524]
[1680734163813,0.081,28120.0,28119.0,0.15257544]
[1680734164017,0.077,28120.0,28119.0,0.15257544]
[1680734164215,0.083,28120.0,28119.0,0.15357544]
[1680734165137,0.083,28120.0,28119.0,0.32380027]
[1680734165338,0.083,28120.0,28119.0,0.32392027]
[1680734165948,0.083,28120.0,28119.0,0.19622007]
[1680734166149,0.083,28120.0,28119.0,0.19610007]
[1680734167030,0.083,28120.0,28119.0,0.1536174]
[1680734167231,0.083,28120.0,28119.0,0.23864909]
[1680734168526,0.094,28120.0,28119.0,0.23864909]
[1680734171959,0.094,28120.0,28119.0,0.38137524]
[1680734172287,0.094,28120.0,28119.0,0.38149524]
[1680734172458,0.09153062,28120.0,28119.0,0.38137524]
[1680734172903,0.08553062,28120.0,28119.0,0.38037524]
[1680734173317,0.08910129,28120.0,28119.0,0.38137524]
[1680734174328,0.09770901,28120.0,28119.0,0.38137524]
[1680734175289,0.09535471,28120.0,28119.0,0.38137524]
[1680734176362,0.09303765,28120.0,28119.0,0.38137524]
[1680734177485,0.09030468,28120.0,28119.0,0.38137524]
[1680734178283,0.08762362,28120.0,28119.0,0.38137524]
[1680734178485,0.08762362,28120.0,28119.0,0.59448575]
[1680734179446,0.08499395,28120.0,28119.0,0.59448575]
[1680734179697,0.08499395,28120.0,28119.0,0.55186781]
[1680734179698,0.22689076,28120.0,28119.0,0.55186781]
[1680734179957,0.13808895,28120.0,28119.0,0.15374735]
[1680734180160,0.14908895,28120.0,28119.0,0.15374735]
[1680734180372,0.14650456,28120.0,28119.0,0.15374735]
[1680734180581,0.50121512,28120.0,28119.0,0.15374735]
[1680734181000,0.50142512,28120.0,28119.0,0.15374735]
[1680734181218,0.50142512,28120.0,28119.0,0.02587524]
[1680734181829,0.50133512,28120.0,28119.0,0.02087524]
[1680734182047,0.50121512,28120.0,28119.0,0.02087524]
[1680734182410,0.50121512,28120.0,28119.0,0.03247088]
[1680734185972,0.51221512,28120.0,28119.0,0.03247088]
[1680734189403,0.51242512,28120.0,28119.0,0.03247088]
[1680734189610,0.51221512,28120.0,28119.0,0.03247088]
[1680734190945,0.51242512,28120.0,28119.0,0.03247088]
[1680734191758,0.52342512,28120.0,28119.0,0.03247088]
[1680734191964,0.52321512,28120.0,28119.0,0.03247088]
[1680734194442,0.52327512,28120.0,28119.0,0.03247088]
[1680734194837,0.52342512,28120.0,28119.0,0.03247088]
[1680734196040,0.52321512,28120.0,28119.0,0.03247088]
[1680734197247,0.47012012,28120.0,28119.0,0.03247088]
[1680734197423,0.48112012,28120.0,28119.0,0.03247088]
[1680734203242,0.49212012,28120.0,28119.0,0.03247088]
[1680734204554,0.49233012,28120.0,28119.0,0.03247088]
[1680734204686,0.49212012,28120.0,28119.0,0.03247088]
[1680734207762,0.49233012,28120.0,28119.0,0.03247088]
[1680734207967,0.49212012,28120.0,28119.0,0.03247088]
[1680734209157,0.50312012,28120.0,28119.0,0.03247088]
[1680734210100,1.00312012,28120.0,28119.0,0.03247088]
[1680734210348,1.05687212,28120.0,28119.0,0.03247088]
[1680734212117,1.05708212,28120.0,28119.0,0.03247088]
[1680734212646,1.05702212,28120.0,28119.0,0.03247088]
[1680734212820,1.05687212,28120.0,28119.0,0.03247088]
[1680734215659,1.06787212,28120.0,28119.0,0.03247088]
[1680734219354,1.01412012,28120.0,28119.0,0.03247088]
[1680734219992,1.06688712,28120.0,28119.0,0.03247088]
[1680734220421,1.06778712,28120.0,28119.0,0.03247088]
[1680734220639,1.01412012,28120.0,28119.0,0.03247088]
[1680734221400,1.07918612,28120.0,28119.0,0.03247088]
[1680734221741,1.07939612,28120.0,28119.0,0.03247088]
[1680734222768,1.02533012,28120.0,28119.0,0.03247088]
[1680734223175,0.67061956,28120.0,28119.0,0.16034299]
[1680734223593,0.67061956,28120.0,28119.0,0.51584299]
[1680734223796,0.67061956,28120.0,28119.0,0.68633556]
[1680734223995,0.67061956,28120.0,28119.0,0.51584299]
[1680734224376,0.67061956,28120.0,28119.0,0.68633556]
[1680734224577,0.67061956,28120.0,28119.0,0.68633415]
[1680734224782,0.67061956,28120.0,28119.0,0.55846345]
[1680734227363,0.68161956,28120.0,28119.0,0.55846345]
[1680734229213,0.68161956,28120.0,28119.0,0.55858345]
[1680734229767,0.68161956,28120.0,28119.0,0.55846345]
[1680734230618,0.68140956,28120.0,28119.0,0.97706139]
[1680734230823,0.68140956,28120.0,28119.0,0.76395088]
[1680734231258,0.68140956,28120.0,28119.0,0.79869431]
[1680734231482,0.67825035,28120.0,28119.0,0.79869431]
[1680734232322,0.67225035,28120.0,28119.0,0.79769431]
[1680734232524,0.67225035,28120.0,28119.0,0.80069431]
[1680734232937,0.68325035,28120.0,28119.0,0.79769431]
[1680734233171,0.68425035,28120.0,28119.0,0.80769431]
[1680734233307,0.68325035,28120.0,28119.0,0.79769431]
[1680734233508,0.68325035,28120.0,28119.0,0.80069431]
[1680734234119,0.68325035,28120.0,28119.0,0.79769431]
[1680734234349,0.68027355,28120.0,28119.0,0.79769431]
[1680734235347,0.67736934,28120.0,28119.0,0.79769431]
[1680734235555,0.67736934,28120.0,28119.0,0.80069431]
[1680734235782,0.67736934,28120.0,28119.0,0.79769431]
[1680734235951,0.67836934,28120.0,28119.0,0.80769431]
[1680734236144,0.67857934,28120.0,28119.0,0.79763431]
[1680734236344,0.67474674,28120.0,28119.0,0.79763431]
[1680734236532,0.67474674,28120.0,28119.0,1.01359852]
[1680734236740,0.67474674,28120.0,28119.0,1.01059852]
[1680734237144,0.67574674,28120.0,28119.0,1.02059852]
[1680734237551,0.67298034,28120.0,28119.0,1.02059852]
[1680734238134,0.67198034,28120.0,28119.0,1.01059852]
[1680734238356,0.67198034,28120.0,28119.0,1.01365852]
[1680734238357,0.66906938,28120.0,28119.0,1.01365852]
[1680734238554,0.66906938,28120.0,28119.0,1.01065852]
[1680734238764,0.68106938,28120.0,28119.0,1.02065852]
[1680734238977,0.68006938,28120.0,28119.0,1.01065852]
[1680734239180,0.68006938,28120.0,28119.0,1.01365852]
[1680734239388,0.67743305,28120.0,28119.0,1.01365852]
[1680734240411,0.67486075,28120.0,28119.0,1.01365852]
[1680734241162,0.67486075,28120.0,28119.0,1.01365852]
[1680734241360,0.67486075,28120.0,28119.0,0.98218764]
[1680734244887,0.68586075,28120.0,28119.0,0.98218764]
[1680734249934,0.68586075,28120.0,28119.0,0.90954421]
[1680734250198,0.68586075,28120.0,28119.0,0.47346902]
[1680734250344,0.68586075,28120.0,28119.0,0.68643323]
[1680734250547,0.69686075,28120.0,28119.0,0.68643323]
[1680734251182,0.69686075,28120.0,28119.0,0.72433323]
[1680734251964,0.69686075,28120.0,28119.0,0.90954421]
[1680734252167,0.69686075,28120.0,28119.0,0.94744421]
[1680734252360,0.69686075,28120.0,28119.0,0.90954421]
[1680734253392,0.69686075,28120.0,28119.0,0.92970709]
[1680734256492,0.70786075,28120.0,28119.0,0.92970709]
[1680734257339,0.70786075,28120.0,28119.0,0.71674288]
[1680734257935,0.70786075,28120.0,28119.0,0.96750506]
[1680734258884,0.70786075,28120.0,28119.0,1.00263026]
[1680734259310,0.70786075,28120.0,28119.0,1.00263968]
[1680734259719,0.70786075,28120.0,28119.0,1.00263976]
[1680734259944,0.70786075,28120.0,28119.0,0.78976808]
[1680734260144,0.70807075,28120.0,28119.0,0.78970808]
[1680734260357,0.70786075,28120.0,28119.0,0.78976808]
[1680734261178,0.70786075,28120.0,28119.0,0.75186808]
[1680734262455,0.71886075,28120.0,28119.0,0.75186808]
[1680734265544,0.71886075,28120.0,28119.0,0.78956808]
[1680734268322,0.72986075,28120.0,28119.0,0.78956808]
[1680734269586,0.72986075,28120.0,28119.0,0.75186808]
[1680734271251,0.72986075,28120.0,28119.0,0.78976808]
[1680734273614,0.72986075,28120.0,28119.0,0.75186808]
[1680734273835,0.72986075,28120.0,28119.0,0.62696332]
[1680734274047,0.74086075,28120.0,28119.0,0.62696332]
[1680734274441,0.74086075,28120.0,28119.0,0.27146332]
[1680734275073,0.74086075,28120.0,28119.0,0.57146332]
[1680734275481,0.74086075,28120.0,28119.0,0.52890085]
[1680734276039,0.74107075,28120.0,28119.0,0.39738293]
[1680734276450,0.74107075,28120.0,28119.0,0.42367991]
[1680734276651,0.74107075,28120.0,28119.0,0.25330714]
[1680734276907,0.74107075,28120.0,28119.0,0.46630238]
[1680734279749,0.75207075,28120.0,28119.0,0.46630238]
[1680734280306,0.75207075,28120.0,28119.0,0.46624238]
[1680734281558,0.75207075,28120.0,28119.0,0.63666636]
[1680734282711,0.76207075,28120.0,28119.0,0.63766636]
[1680734283116,0.76207075,28120.0,28119.0,0.46724238]
[1680734283333,0.76207075,28120.0,28119.0,0.45983926]
[1680734283539,0.76207075,28120.0,28119.0,0.4409454]
[1680734283937,0.76207075,28120.0,28119.0,0.7964454]
[1680734284370,0.76207075,28120.0,28119.0,0.81478222]
[1680734285640,0.77307075,28120.0,28119.0,0.81478222]
[1680734287491,0.77307075,28120.0,28119.0,0.81441853]
[1680734291426,0.78407075,28120.0,28119.0,0.82010992]
[1680734293569,0.78407075,28120.0,28119.0,0.82012397]
[1680734293773,0.78407075,28120.0,28119.0,0.62966713]
[1680734294674,0.78407075,28120.0,28119.0,0.62972713]
[1680734295971,0.78407075,28120.0,28119.0,0.41671784]
[1680734296182,0.78407075,28120.0,28119.0,0.41665784]
[1680734296821,0.78407075,28120.0,28119.0,0.45425784]
[1680734297030,0.79507075,28120.0,28119.0,0.45425784]
[1680734297476,0.79507075,28120.0,28119.0,0.43022963]
[1680734297984,0.79507075,28120.0,28119.0,0.78500019]
[1680734298207,0.79507075,28120.0,28119.0,1.38677185]
[1680734298618,0.79486075,28120.0,28119.0,1.13162019]
[1680734300089,0.78486075,28120.0,28119.0,1.13062019]
[1680734300395,0.78607075,28120.0,28119.0,0.97935069]
[1680734301268,0.78607075,28120.0,28119.0,1.01725069]
[1680734302118,0.78607075,28120.0,28119.0,1.3944929]
[1680734302337,0.78607075,28120.0,28119.0,1.4702929]
[1680734302539,0.78408612,28120.0,28119.0,1.48821924]
[1680734302753,0.79508612,28120.0,28119.0,1.55866665]
[1680734303188,0.79408612,28120.0,28119.0,1.15642444]
[1680734303406,0.79408612,28120.0,28119.0,1.18442444]